Cogmind - Beta 13 @@@ ROGUE MODE // 2024.03.16 @ 14:23:13 Player: darki Result: Destroyed by G-34 Mercenary with Small Laser Performance ------------- Evolutions (0) 0 Regions Visited (2) 400 Robots Destroyed (12) 60 Value Destroyed (177) 177 Prototype IDs (0) 0 Alien Tech Used (0) 0 Bonus (0) 0 TOTAL SCORE: 637 Bonus ------- None Cogmind --------- Core Integrity 0/250 Matter 258/300 Energy 137/150 System Corruption 3% Temperature Cool (6) Movement Flying (117) Ox1 Location -10/Mines Parts ------- > --- POWER (1) -------- Light Angular Momentum Engine > --- PROPULSION (2) --- Flight Unit Flight Unit > --- UTILITY (2) ------ Improved Terrain Scanner Improved Terrain Scan Processor > --- WEAPON (2) ------- Field Laser Minigun > --- INVENTORY (5) ---- Ion Engine Light Treads Light Treads Large Storage Unit Pulse Rifle Peak State ------------ > --- POWER ------------ Light Angular Momentum Engine > --- PROPULSION ------- Flight Unit Flight Unit > --- UTILITY ---------- Improved Terrain Scanner Improved Terrain Scan Processor > --- WEAPON ----------- Field Laser Minigun > --- INVENTORY -------- Ion Engine Light Treads Light Treads Large Storage Unit Pulse Rifle [Rating: 19] Favorites ----------- Power Ion Engine Engine Ion Engine Propulsion Aluminum Leg Treads Light Treads Leg Aluminum Leg Flight Unit Flight Unit Utility Improved Terrain Scanner Device Improved Terrain Scanner Storage Large Storage Unit Processor Improved Terrain Scan Processor Weapon Light Assault Rifle Energy Gun Field Laser Ballistic Gun Light Assault Rifle Build | -11 -10 -10 ------- Run | Yrd Mat Min Slots Evolved . | . . . Power . | . . . Propulsion . | . . . Utility . | . . . Weapon . | . . . Parts Attached 12 | 1 2 9 Power 2 | . 1 1 Engine 2 | . 1 1 Core . | . . . Reactor . | . . . Propulsion 4 | . . 4 Treads 2 | . . 2 Leg . | . . . Wheel . | . . . Hover . | . . . Flight 2 | . . 2 Utility 4 | 1 1 2 Device 2 | 1 . 1 Storage 1 | . 1 . Processor 1 | . . 1 Hackware . | . . . Protection . | . . . Artifact . | . . . Weapon 2 | . . 2 Energy Gun 1 | . . 1 Energy Cannon . | . . . Ballistic Gun 1 | . . 1 Ballistic Cannon . | . . . Launcher . | . . . Special Weapon . | . . . Impact Weapon . | . . . Slashing Weapon . | . . . Piercing Weapon . | . . . Special Melee Weapon . | . . . Unidentified Prototypes . | . . . Parts Lost 1 | . 1 . Power . | . . . Propulsion 1 | . 1 . Utility . | . . . Weapon . | . . . Highest Loss Streak 1 | . 1 . To Critical Strikes . | . . . Average Slot Usage (%) 96 | . 99 89 Engine 14 | . 14 14 Treads 7 | . . 26 Leg 19 | . 27 . Device 11 | . 14 3 Storage 13 | . 14 13 Energy Gun 3 | . . 10 Ballistic Gun 24 | . 28 17 Naked Turns . | . . . Heaviest Build 35 | 12 29 35 Greatest Support 40 | 20 20 40 Greatest Overweight (x) 2 | . 2 . Average Overweight (x) . | . . . Largest Inventory Capacity 15 | 8 15 15 Average Capacity 12 | 8 11 14 Most Carried 11 | 6 9 11 Average Carried 8 | 6 7 10 Final Capacity 15 | 8 15 5 Final Carried 9 | 6 9 5 Class Distribution -------------------- 100% | Mutant Dominant Class ---------------- Mutant | -10/Materials Mutant | -10/Mines Resources | -11 -10 -10 ----------- Run | Yrd Mat Min Matter Collected 408 | 234 100 74 Remotely . | . . . Salvage Created 373 | 119 213 41 Parts 23 | 8 13 2 Haulers Intercepted 1 | . 1 . Recyclers Shooed 1 | 1 . . Parts Field Recycled . | . . . Retrieved Matter . | . . . Parts Self-Destructed . | . . . Prevented . | . . . Kills | -11 -10 -10 ------- Run | Yrd Mat Min Combat Hostiles Destroyed 6 | . 5 1 Guns 6 | . 5 1 Classes Destroyed 6 | 2 4 . Tunneler 3 | 3 . . Hauler 1 | . 1 . Recycler 1 | 1 . . Watcher 1 | . 1 . Swarmer 3 | . 3 . Grunt 3 | . 2 1 Best Kill Streak 4 | 3 4 1 Combat Bots Only 3 | . 3 1 Max Kills in Single Turn 1 | 1 1 1 Gunslinging . | . . . Exploded . | . . . Melee . | . . . Uniques/NPCs Destroyed . | . . . Combat | -11 -10 -10 -------- Run | Yrd Mat Min Hostile Shots Fired 84 | . 73 11 Missed 26 | . 24 2 Damage Taken 626 | . 510 116 Core 255 | . 209 46 Absorbed by Shields . | . . . Core Remaining (%) 100 | 100 . . Volleys Fired 30 | 6 20 4 Largest 2 | 2 2 2 Hottest 88 | 40 40 88 Shots Fired 60 | 12 40 8 Gun 60 | 12 40 8 Cannon . | . . . Launcher . | . . . Special . | . . . Kinetic 56 | 12 40 4 Thermal 4 | . . 4 Explosive . | . . . Electromagnetic . | . . . Robot Hit Streak 7 | 2 7 6 Robot Miss Streak 5 | 1 5 1 Penetration Max . | . . . Secondary Targets 1 | . 1 . Max Gunslinging Chain 1 | . 1 . Shots Hit Robots 35 | 6 23 6 Core Hits 14 | 4 9 1 Critical Kills . | . . . Critical Parts Destroyed . | . . . Critical Strikes . | . . . Melee Attacks . | . . . Impact . | . . . Slashing . | . . . Piercing . | . . . Sneak Attacks . | . . . Combat Hostiles . | . . . Follow-up Attacks . | . . . Damage Inflicted 419 | 68 248 103 Guns 418 | 68 248 102 Cannons . | . . . Explosions . | . . . Melee . | . . . Ramming 1 | . . 1 Kinetic 352 | 68 248 36 Thermal 66 | . . 66 Explosive . | . . . Electromagnetic . | . . . Impact . | . . . Slashing . | . . . Piercing . | . . . Highest Corruption 3 | . 3 3 Average Corruption 2 | . 2 3 Corruption Purged . | . . . Corruption Blocked . | . . . Effects 4 | . 1 3 Message Errors 2 | . 1 1 Matter Fused 2 | . . 2 Overload Shots . | . . . Overflow Damage . | . . . Projectiles . | . . . Explosions . | . . . Melee . | . . . Knockbacks . | . . . Impact . | . . . Kinetic . | . . . Secondary . | . . . Self-Inflicted Damage . | . . . Shots . | . . . Rammed 1 | . . 1 Targets Rammed 1 | . . 1 Kicked . | . . . Crushed . | . . . Highest Temperature 196 | . 12 196 Average Temperature 64 | . 7 97 Received Heat Transfer 255 | . 195 60 Siege Activations . | . . . Robots Corrupted . | . . . Combat Hostiles . | . . . Parts Fried . | . . . Impact Corruptions . | . . . Robots Melted . | . . . Combat Hostiles . | . . . Parts Melted . | . . . Heat Transferred 148 | . . 148 Parts Sabotaged . | . . . Parts Stolen . | . . . Parts Stripped . | . . . Power Chain Reactions . | . . . Alert | -11 -10 -10 ------- Run | Yrd Mat Min Peak Influence 137 | 20 137 33 Initial 13 | . 13 13 Average 60 | 7 86 22 Maximum Alert Level . | . . . Low Security (%) 100 | 100 100 100 Level 1 . | . . . Level 2 . | . . . Level 3 . | . . . Level 4 . | . . . Level 5 . | . . . High Security . | . . . Max Security . | . . . Squads Dispatched 3 | . 2 1 Investigation 2 | . 1 1 Extermination . | . . . Reinforcement 1 | . 1 . Assault . | . . . Garrison . | . . . Intercept . | . . . Searches Triggered . | . . . Construction Impeded . | . . . Haulers Reinforced . | . . . Active Scanning Responses . | . . . Cargo Convoy Interrupts . | . . . Stealth | -11 -10 -10 --------- Run | Yrd Mat Min Distress Signals 2 | . 2 . Communications Jammed . | . . . Distress Signals . | . . . Times Spotted 17 | . 14 3 Peak Tracking Total 7 | . 7 2 Tactical Retreats 1 | . 1 . Traps | -11 -10 -10 ------- Run | Yrd Mat Min Traps Triggered 3 | . 3 . Indirectly . | . . . Trap Hack Attempts . | . . . Triggered . | . . . Disarmed . | . . . Reprogrammed . | . . . Reused . | . . . Traps Extracted . | . . . Installed . | . . . Triggered . | . . . Machines | -11 -10 -10 ---------- Run | Yrd Mat Min Machines Disabled . | . . . Max in Single Turn . | . . . Machines Repaired . | . . . Machines Dismantled . | . . . Machines Sabotaged . | . . . Overloaded Fab Kills . | . . . Hacking | -11 -10 -10 --------- Run | Yrd Mat Min Machines Accessed 3 | . 2 1 Terminals 2 | . 2 . Fabricators . | . . . Repair Stations . | . . . Recycling Units . | . . . Scanalyzers . | . . . Garrison Access . | . . . Total Hacks 4 | . 3 1 Successful 3 | . 2 1 Failed 1 | . 1 . Catastrophic . | . . . Database Lockouts . | . . . Manual 1 | . 1 . Terminals 3 | . 3 . Fabricators . | . . . Repair Stations . | . . . Recycling Units . | . . . Scanalyzers . | . . . Garrison Access . | . . . Terminal Hacks 2 | . 1 1 Open Door 1 | . . 1 Hauler Manifests 1 | . 1 . Fabricator Hacks . | . . . Repair Station Hacks . | . . . Recycling Unit Hacks . | . . . Scanalyzer . | . . . Garrison Access Hacks . | . . . Unauthorized Hacks 1 | . 1 . Terminals 1 | . 1 . Botnet 1 | . 1 . Fabricators . | . . . Repair Stations . | . . . Recycling Units . | . . . Scanalyzers . | . . . Garrison Access . | . . . Data Cores Recovered . | . . . Used . | . . . Hacking Detections 2 | . 2 . Full Trace Events . | . . . Feedback Events . | . . . Feedback Blocked . | . . . Robot Schematics Acquired . | . . . Robots Built . | . . . Authchips . | . . . Time . | . . . Total Robot Build Rating . | . . . Part Schematics Acquired . | . . . Parts Built . | . . . Authchips . | . . . Time . | . . . Total Part Build Rating . | . . . Parts Repaired . | . . . Time . | . . . Parts Recycled . | . . . Recycled Matter . | . . . Retrieved Matter . | . . . Retrieved Components . | . . . Parts Scanalyzed . | . . . Part Schematics Acquired . | . . . Parts Damaged . | . . . Bothacking | -11 -10 -10 ------------ Run | Yrd Mat Min Used RIF Installer . | . . . Robots Hacked . | . . . Non-combat . | . . . Combat . | . . . Robot Hacks Applied . | . . . Relay Couplers Released . | . . . Fabnet Peak Effective % . | . . . Robots Rewired . | . . . Allies Hacked . | . . . Hacks Repelled . | . . . Allies | -11 -10 -10 -------- Run | Yrd Mat Min Total Allies . | . . . Largest Group . | . . . Highest-Rated Group . | . . . Highest-Rated Ally . | . . . Total Orders . | . . . Ally Attacks . | . . . Total Damage . | . . . Kills . | . . . Allies Corrupted . | . . . Allies Melted . | . . . Intel | -11 -10 -10 ------- Run | Yrd Mat Min Robot Analysis Total . | . . . Derelict Logs Recovered 1 | . . 1 Drone Launches . | . . . Drone Recoveries . | . . . Exploration | -11 -10 -10 ------------- Run | Yrd Mat Min Turns Passed 690 | 81 428 181 Spaces Moved 333 | 16 226 91 Core . | . . . Treads 91 | . . 91 Legs 242 | 16 226 . Wheels . | . . . Hover . | . . . Flight . | . . . Fastest Speed 120 | 120 120 160 Average Speed 152 | 120 151 160 Slowest Speed 260 | 120 260 160 Overloaded Moves . | . . . Propulsion Burnouts . | . . . Robots Hopped . | . . . Cave-ins Triggered . | . . . Exploration Rate (%) 25 | 3 53 21 Regions Visited 2 Branch Regions 1 Pre-discovered Areas . | . . . Known Exits Taken . | . . . Unknown Exits Taken 2 | 1 1 . Scrap Searched 1 | . . 1 Spaces Dug . | . . . Terrain Destroyed . | . . . Melee . | . . . Projectile . | . . . AOE . | . . . Terrain Rammed . | . . . Walls Destroyed . | . . . Machines Disabled . | . . . Actions | -11 -10 -10 --------- Run | Yrd Mat Min Total 460 | 66 277 117 Wait 74 | 44 25 5 Move 331 | 15 225 91 Hop . | . . . Pick Up 6 | . 3 3 Fast Attach 1 | 1 . . Attach 3 | . . 3 Detach 1 | . . 1 Swap 8 | . 2 6 Drop 5 | . 2 3 Fire 30 | 6 20 4 Melee . | . . . Ram . | . . . Kick . | . . . Crush 1 | . . 1 Escape Stasis . | . . . Rewire . | . . . Trap . | . . . Miscellaneous . | . . . Route ------- -11/Scrapyard -10/Materials (discovered 2 exits: [*Mat] / *Min) -10/Mines History --------- Turn | Location | Event 1 | -11/Scrapyard | Discovered new exit (range 3) 82 | -11/Scrapyard | Entered Materials 251 | -10/Materials | Discovered new exit (range 16) 314 | -10/Materials | Build established: Mutant 448 | -10/Materials | Core integrity fell below 50% 500 | -10/Materials | Discovered new exit (range 6) 509 | -10/Materials | Core integrity fell below 20% 510 | -10/Materials | Entered Mines 521 | -10/Mines | Learned Materials terminal intel 533 | -10/Mines | Met a Derelict shopkeep closing up shop 691 | -10/Mines | Destroyed by G-34 Mercenary with Small Laser Last Messages --------------- 00608_ Found Lgt. Assault Rifle. 00608_ Found 25 Matter. 00609_ Acquired 16 matter. 00628_ System corrupted: Matter fused (-7). 00653_ K-01 Serf cleans the Seismic Survey Station. 00662_ K-01 Serf cleans the Seismic Survey Station. 00666_ K-01 Serf cleans the Seismic Survey Station. 00674_ K-01 Serf cleans the Seismic Survey Station. 00677_ INABG#7ZC1IFZBH6T/9N: 00677_ Slammed into U-05 Engineer. 00678_ K-01 Serf cleans the Seismic Survey Station. 00681_ K-01 Serf cleans the Seismic Survey Station. 00688_ K-01 Serf cleans the Seismic Survey Station. Map ----- +----------------------------------------------------+ | ?????????????????????????????????????????????????? | | ?????????????????????????????????????????????????? | | ?????????????????????????????????????????????????? | | ?????????????????????????????????????????????????? | | ?????????????????????????????????????????????????? | | ?????????????????????????????????????????????????? | | ?????????????????????????????????????????????????? | | ?????????????????????????????????????????????????? | | ?????????????????????????????????????????????????? | | ?????????????????????????????????????????????????? | | ?????????????????????????????? ??????????????????? | | ??????????????????????????#? ????????????????????? | | ?????????????????????????????????????????????????? | | ?????????????????????????????????????????????????? | | ?????????????????????????????????????????????????? | | ????????????????????????????????????? ???????????? | | ???????????????????????????????????? ?????????? | | ???????????????#??????????????????? ?????????? | | ??????????????????????????????????? ??????????? | | ??????????????????????????????????? ??????????? | | ??????????????? ??? ????????????#?? #??????????? | | ??????????????????????????????????? ##?????????? | | ??????????????????????????????????? ##????????? | | ?????# ########???################?# ##???????? | | ?????# *=%%[%*#???# [! g ### ##??????? | | ?????# ######!##??# !@* g ## #####??? | | ????????????#!#???# ######### k""" ??? | | ???????? ???#!#???# ##?????## """ ????? | | ????????????#=##### ##????# """ #??????? | | ???????????## % ## ##???# #??????? | | ???????"??## ###?# ##?????? | | ??????????# ### ## #?????? | | ?????????# ##### ## #### #?????? | | ?????????# ##?#### ### ##??# #????? | | ?????????# #?##""## ######??? #????? | | ?????????## ##?#"! #X ##?????? #????? | | ??????????###???#"= #????? #????? | | ????????????????#"= # #????# ##????? | | ????????????????#"[ [# # #????# ## ##?????? | | ?????????????#??##""## # #????# #? #??????? | | ?????????????????####### ##????# #? #??????? | | ???????????#???????????? ###???? ??? #??????? | | ??????????????????#?????# ##?????? ##??? ??????? | | ?????????????????????#???####?????? ??????#??????? | | ?????????????????????????#?????????$?????????????? | | ??????????????????????????????????? ?????????????? | | ???????????????#?????????????#???????????????????? | | ?????????????????????????????????????????????????? | | ????????????????#????????????????????????????????? | | ????????????????????????? ???????????????????????? | +----------------------------------------------------+ Best States ------------- Heat Dissipation 25 Energy Generation 18 Energy Capacity 250 Matter Stores 300 Matter Capacity 300 Sight Range 16 Terrain Scan Range 16 Terrain Scan Density 110 Evasion (%) 55 Recoil Reduction 2 Item Schematics ----------------- None Robot Schematics ------------------ None Fabricated ------------ Nothing Alien Tech Used ----------------- None Achievements -------------- None Challenges ------------ None Game ------ Seed ServoFusionHumpback Manual? 0 Play Time 00:06:55 Cumulative 162.7 hours Start 2024.03.16 @ 14:18:08 End 2024.03.16 @ 14:23:13 Sessions 1 Manual Loads 0 Difficulty Rogue Special Mode None Game No. 172 Rogue 172 Adventurer 0 Explorer 0 Win Type - Total 1 Types 1/0/0/0/0/0/0/0/0 Lore% 53 Gallery% 70 Achievement% 55 Wizard Run 0 Options --------- Layout 1 ASCII 0 Keyboard 0 Movement Numpad Keybinds 0 Fullscreen 1 Font 24/Smallcaps Map View 50x35 Zoom Use 0% Tactical HUD 1 Map Filters NONE Filters NONE Steam 1 RUN: f9b66406-17be-4f05-89ea-b093e987a9ec